[Event "*** Titled Tuesday Blitz"]
[Site "Chess.com"]
[Date "2021.04.27"]
[Round "6"]
[White "Hypercar"]
[Black "DenLaz"]
[Result "0-1"]
[WhiteElo "2603"]
[BlackElo "2820"]
[TimeControl "180+1"]
[EndTime "11:06:54 PDT"]
[Termination "DenLaz won on time"]

1. d4 {[%clk 0:03:00.9]} 1... Nf6 {[%clk 0:02:59.8]} 2. c4 {[%clk 0:03:01.6]}
2... e6 {[%clk 0:02:59.8]} 3. Nf3 {[%clk 0:03:02.2]} 3... d5 {[%clk 0:02:59.6]}
4. Nc3 {[%clk 0:03:02.2]} 4... Be7 {[%clk 0:03:00]} 5. Bg5 {[%clk 0:03:02.9]}
5... O-O {[%clk 0:02:58.2]} 6. cxd5 {[%clk 0:03:03.2]} 6... Nxd5 {[%clk
0:02:31.5]} 7. Bxe7 {[%clk 0:03:02.8]} 7... Qxe7 {[%clk 0:02:32.4]} 8. Rc1
{[%clk 0:03:02.7]} 8... Rd8 {[%clk 0:02:11.9]} 9. e3 {[%clk 0:03:01.8]} 9... c5
{[%clk 0:01:56.3]} 10. Bc4 {[%clk 0:02:55.8]} 10... cxd4 {[%clk 0:01:51.3]} 11.
exd4 {[%clk 0:02:49.4]} 11... Nxc3 {[%clk 0:01:43.5]} 12. bxc3 {[%clk
0:02:47.4]} 12... b6 {[%clk 0:01:42.8]} 13. O-O {[%clk 0:02:47.6]} 13... Bb7
{[%clk 0:01:42.2]} 14. Qe2 {[%clk 0:02:45.3]} 14... Nc6 {[%clk 0:01:41.7]} 15.
Bd3 {[%clk 0:02:44.7]} 15... Rac8 {[%clk 0:01:40.6]} 16. Rfe1 {[%clk 0:02:37.3]}
16... g6 {[%clk 0:01:38.3]} 17. h4 {[%clk 0:02:32.1]} 17... Qf6 {[%clk
0:01:32.8]} 18. h5 {[%clk 0:02:31.9]} 18... Ne7 {[%clk 0:01:31.7]} 19. hxg6
{[%clk 0:02:31]} 19... hxg6 {[%clk 0:01:31]} 20. Ne5 {[%clk 0:02:29.3]} 20...
Nd5 {[%clk 0:01:30.2]} 21. Be4 {[%clk 0:02:21.6]} 21... Rxc3 {[%clk 0:01:07.4]}
22. Bxd5 {[%clk 0:02:18.6]} 22... Rxc1 {[%clk 0:01:07.5]} 23. Rxc1 {[%clk
0:01:39.6]} 23... Bxd5 {[%clk 0:01:06.8]} 24. Rc7 {[%clk 0:01:39.5]} 24... Rf8
{[%clk 0:01:05.3]} 25. Rxa7 {[%clk 0:01:39.5]} 25... Qg5 {[%clk 0:01:02.2]} 26.
f3 {[%clk 0:01:33.6]} 26... Rc8 {[%clk 0:00:51.1]} 27. Nd3 {[%clk 0:01:01.3]}
27... Bc4 {[%clk 0:00:41.8]} 28. Qe5 {[%clk 0:00:57]} 28... Qh4 {[%clk
0:00:35.2]} 29. Nf2 {[%clk 0:00:47.8]} 29... Bd5 {[%clk 0:00:34.3]} 30. Nh3
{[%clk 0:00:47.2]} 30... Bxf3 {[%clk 0:00:21]} 31. Rc7 {[%clk 0:00:37.6]} 31...
Rxc7 {[%clk 0:00:20.4]} 32. Qxc7 {[%clk 0:00:37.5]} 32... Qxd4+ {[%clk 0:00:20]}
33. Kh2 {[%clk 0:00:35.8]} 33... Bd5 {[%clk 0:00:19.8]} 34. a4 {[%clk
0:00:29.8]} 34... Qe4 {[%clk 0:00:15.9]} 35. Nf4 {[%clk 0:00:20.4]} 35... Qxa4
{[%clk 0:00:15.2]} 36. Qd8+ {[%clk 0:00:07]} 36... Kg7 {[%clk 0:00:14.7]} 37.
Nxd5 {[%clk 0:00:07.2]} 37... exd5 {[%clk 0:00:11.1]} 38. Qxd5 {[%clk
0:00:07.2]} 38... Qh4+ {[%clk 0:00:11.3]} 39. Kg1 {[%clk 0:00:06.3]} 39... Qf6
{[%clk 0:00:12.2]} 40. Qb5 {[%clk 0:00:05.1]} 40... Qd6 {[%clk 0:00:12.3]} 41.
Qb2+ {[%clk 0:00:04.4]} 41... f6 {[%clk 0:00:12.6]} 42. Qc2 {[%clk 0:00:03.4]}
42... g5 {[%clk 0:00:12.3]} 43. Qc8 {[%clk 0:00:02.7]} 43... Qc5+ {[%clk
0:00:11.4]} 0-1

[Event "*** Titled Tuesday Blitz"]
[Site "Chess.com"]
[Date "2021.04.27"]
[Round "6"]
[White "Gmedmundo"]
[Black "miredenizdogan"]
[Result "1-0"]
[WhiteElo "2445"]
[BlackElo "2238"]
[TimeControl "180+1"]
[EndTime "11:06:54 PDT"]
[Termination "Gmedmundo won by checkmate"]

1. e4 {[%clk 0:03:00.9]} 1... e6 {[%clk 0:02:59.6]} 2. d4 {[%clk 0:02:58.1]}
2... d5 {[%clk 0:02:59.8]} 3. e5 {[%clk 0:02:57.7]} 3... c5 {[%clk 0:02:59.8]}
4. c3 {[%clk 0:02:56.4]} 4... Nc6 {[%clk 0:03:00.7]} 5. Nf3 {[%clk 0:02:54.3]}
5... Qb6 {[%clk 0:03:01.2]} 6. a3 {[%clk 0:02:51.5]} 6... Nh6 {[%clk 0:03:00.3]}
7. b4 {[%clk 0:02:48.2]} 7... cxd4 {[%clk 0:03:00]} 8. cxd4 {[%clk 0:02:46.9]}
8... Nf5 {[%clk 0:03:00.5]} 9. Be3 {[%clk 0:02:46.2]} 9... Bd7 {[%clk
0:02:58.9]} 10. Bd3 {[%clk 0:02:45.3]} 10... Rc8 {[%clk 0:02:59.2]} 11. Nbd2
{[%clk 0:02:38.2]} 11... Be7 {[%clk 0:02:43.8]} 12. O-O {[%clk 0:02:36.2]} 12...
g6 {[%clk 0:02:37.5]} 13. Nb3 {[%clk 0:02:33.1]} 13... h5 {[%clk 0:02:35.5]} 14.
Qd2 {[%clk 0:02:26.4]} 14... a6 {[%clk 0:02:22]} 15. Bxf5 {[%clk 0:02:08.4]}
15... gxf5 {[%clk 0:02:16.6]} 16. Bg5 {[%clk 0:02:07.1]} 16... Rg8 {[%clk
0:02:14.3]} 17. h4 {[%clk 0:02:04.9]} 17... Na7 {[%clk 0:02:04.1]} 18. Nc5
{[%clk 0:02:00.9]} 18... Bb5 {[%clk 0:01:59.8]} 19. Rfe1 {[%clk 0:02:00]} 19...
Bc4 {[%clk 0:01:59.3]} 20. a4 {[%clk 0:01:51.6]} 20... Nc6 {[%clk 0:01:09.3]}
21. Rab1 {[%clk 0:01:49.8]} 21... Qa7 {[%clk 0:01:04.2]} 22. b5 {[%clk
0:01:40.4]} 22... axb5 {[%clk 0:01:03.5]} 23. axb5 {[%clk 0:01:39.4]} 23... Nb8
{[%clk 0:01:04.1]} 24. Bxe7 {[%clk 0:01:30.5]} 24... Kxe7 {[%clk 0:01:03.9]} 25.
b6 {[%clk 0:01:28.5]} 25... Qa2 {[%clk 0:00:55.8]} 26. Rb2 {[%clk 0:01:12.4]}
26... Qa3 {[%clk 0:00:53.5]} 27. Re3 {[%clk 0:01:09.9]} 27... Qa1+ {[%clk
0:00:51]} 28. Re1 {[%clk 0:01:04.8]} 28... Qa3 {[%clk 0:00:51]} 29. Ng5 {[%clk
0:00:58.7]} 29... Nd7 {[%clk 0:00:17.1]} 30. Nxb7 {[%clk 0:00:54.2]} 30... Rb8
{[%clk 0:00:16.9]} 31. Nd6 {[%clk 0:00:52.5]} 31... Rxb6 {[%clk 0:00:16.9]} 32.
Rxb6 {[%clk 0:00:50.3]} 32... Nxb6 {[%clk 0:00:17.8]} 33. Rb1 {[%clk 0:00:43.7]}
33... Nd7 {[%clk 0:00:16.9]} 34. Ndxf7 {[%clk 0:00:35.5]} 34... Rc8 {[%clk
0:00:14.1]} 35. Rb7 {[%clk 0:00:32.3]} 35... Ba6 {[%clk 0:00:13.4]} 36. Rb1
{[%clk 0:00:30.1]} 36... Bd3 {[%clk 0:00:11.8]} 37. Qb4+ {[%clk 0:00:26]} 37...
Qxb4 {[%clk 0:00:11]} 38. Rxb4 {[%clk 0:00:25.8]} 38... Rc1+ {[%clk 0:00:11.7]}
39. Kh2 {[%clk 0:00:25.1]} 39... Rd1 {[%clk 0:00:12.1]} 40. Nd6 {[%clk
0:00:20.9]} 40... Be4 {[%clk 0:00:11.2]} 41. f3 {[%clk 0:00:20.5]} 41... Bc2
{[%clk 0:00:10.8]} 42. Kg3 {[%clk 0:00:20]} 42... Bd3 {[%clk 0:00:09.9]} 43. Ra4
{[%clk 0:00:15.9]} 43... Bc2 {[%clk 0:00:08.5]} 44. Ra8 {[%clk 0:00:15.4]} 44...
Rxd4 {[%clk 0:00:08.3]} 45. Re8# {[%clk 0:00:14.8]} 1-0

[Event "*** Titled Tuesday Blitz"]
[Site "Chess.com"]
[Date "2021.04.27"]
[Round "6"]
[White "retropwr"]
[Black "NoboaKevin1999"]
[Result "0-1"]
[WhiteElo "2241"]
[BlackElo "2437"]
[TimeControl "180+1"]
[EndTime "11:06:55 PDT"]
[Termination "NoboaKevin1999 won by resignation"]

1. c4 {[%clk 0:03:00.9]} 1... e5 {[%clk 0:02:59.2]} 2. Nc3 {[%clk 0:03:00.2]}
2... Nc6 {[%clk 0:02:55.7]} 3. Nf3 {[%clk 0:02:59.8]} 3... Nf6 {[%clk
0:02:54.9]} 4. e3 {[%clk 0:02:59.8]} 4... Bb4 {[%clk 0:02:50.4]} 5. Qc2 {[%clk
0:02:58.6]} 5... a5 {[%clk 0:02:49.1]} 6. Nd5 {[%clk 0:02:50.2]} 6... d6 {[%clk
0:02:47.8]} 7. a3 {[%clk 0:02:49.3]} 7... Bc5 {[%clk 0:02:43.9]} 8. Be2 {[%clk
0:02:40.8]} 8... a4 {[%clk 0:02:42.8]} 9. Nc3 {[%clk 0:02:31.7]} 9... Bg4 {[%clk
0:02:20.1]} 10. Nxa4 {[%clk 0:02:27.7]} 10... e4 {[%clk 0:02:16.6]} 11. Ng1
{[%clk 0:02:02.6]} 11... Bf5 {[%clk 0:02:09]} 12. b4 {[%clk 0:01:50.1]} 12...
Ba7 {[%clk 0:02:05.7]} 13. Nh3 {[%clk 0:01:37.7]} 13... Ne5 {[%clk 0:02:03.1]}
14. Nf4 {[%clk 0:01:29.7]} 14... Qd7 {[%clk 0:01:54.5]} 15. d4 {[%clk
0:01:23.3]} 15... exd3 {[%clk 0:01:51.8]} 16. Nxd3 {[%clk 0:01:23.4]} 16...
Nxd3+ {[%clk 0:01:44.3]} 17. Bxd3 {[%clk 0:01:16]} 17... Bxd3 {[%clk 0:01:45.2]}
18. Qxd3 {[%clk 0:01:16.5]} 18... Qxa4 {[%clk 0:01:45.1]} 19. Bb2 {[%clk
0:01:16]} 19... Qd7 {[%clk 0:01:36.5]} 20. O-O {[%clk 0:01:13.3]} 20... Qe7
{[%clk 0:01:35.4]} 21. Rad1 {[%clk 0:01:07.7]} 21... O-O {[%clk 0:01:35]} 22.
Kh1 {[%clk 0:01:06.3]} 22... Rae8 {[%clk 0:01:28.7]} 23. Rfe1 {[%clk 0:01:06.3]}
23... Bb8 {[%clk 0:01:24.8]} 24. f3 {[%clk 0:01:06.4]} 24... c6 {[%clk
0:01:24.8]} 25. e4 {[%clk 0:01:06.6]} 25... Nd7 {[%clk 0:01:22.1]} 26. Qd4
{[%clk 0:01:03.9]} 26... Qe5 {[%clk 0:01:14]} 27. Qd2 {[%clk 0:01:00.6]} 27...
Qh5 {[%clk 0:01:06.7]} 28. c5 {[%clk 0:00:58.1]} 28... dxc5 {[%clk 0:00:51.7]}
29. g4 {[%clk 0:00:57.1]} 29... Qh3 {[%clk 0:00:48.8]} 30. Qf2 {[%clk
0:00:46.5]} 30... Ne5 {[%clk 0:00:42]} 31. Re3 {[%clk 0:00:38.9]} 31... cxb4
{[%clk 0:00:35.7]} 32. axb4 {[%clk 0:00:32.5]} 32... Nc4 {[%clk 0:00:34]} 33.
Rb3 {[%clk 0:00:31.9]} 33... Nxb2 {[%clk 0:00:33.2]} 34. Qxb2 {[%clk 0:00:31.2]}
34... Rd8 {[%clk 0:00:32]} 35. Rg1 {[%clk 0:00:30.7]} 35... f6 {[%clk
0:00:29.4]} 36. b5 {[%clk 0:00:30.6]} 36... Be5 {[%clk 0:00:25.9]} 37. Qe2
{[%clk 0:00:29.7]} 37... c5 {[%clk 0:00:23.7]} 38. b6 {[%clk 0:00:28.6]} 38...
Bd4 {[%clk 0:00:20]} 39. Rgb1 {[%clk 0:00:26.8]} 39... Rd7 {[%clk 0:00:18.8]}
40. f4 {[%clk 0:00:23.4]} 40... Qh6 {[%clk 0:00:18]} 41. g5 {[%clk 0:00:22.1]}
41... fxg5 {[%clk 0:00:17.9]} 42. f5 {[%clk 0:00:22.4]} 42... Rfd8 {[%clk
0:00:15.5]} 43. Qg4 {[%clk 0:00:19.7]} 43... Qc6 {[%clk 0:00:15.2]} 44. Rh3
{[%clk 0:00:18.9]} 44... Re8 {[%clk 0:00:13.9]} 45. Qh5 {[%clk 0:00:18.2]} 45...
Qxe4+ {[%clk 0:00:13.2]} 46. Rf3 {[%clk 0:00:16.4]} 46... Qxb1+ {[%clk
0:00:13.2]} 47. Kg2 {[%clk 0:00:16.6]} 47... Qc2+ {[%clk 0:00:11.1]} 0-1

[Event "*** Titled Tuesday Blitz"]
[Site "Chess.com"]
[Date "2021.04.27"]
[Round "6"]
[White "Julianos82"]
[Black "Trovita84"]
[Result "1-0"]
[WhiteElo "2311"]
[BlackElo "2142"]
[TimeControl "180+1"]
[EndTime "11:06:56 PDT"]
[Termination "Julianos82 won on time"]

1. d4 {[%clk 0:03:00.9]} 1... e6 {[%clk 0:02:58.8]} 2. Nf3 {[%clk 0:02:59.9]}
2... Nf6 {[%clk 0:02:58.1]} 3. Bg5 {[%clk 0:02:58.3]} 3... Be7 {[%clk
0:02:56.5]} 4. e3 {[%clk 0:02:57.2]} 4... d5 {[%clk 0:02:55.9]} 5. Nbd2 {[%clk
0:02:56]} 5... O-O {[%clk 0:02:51.3]} 6. Bd3 {[%clk 0:02:55.3]} 6... h6 {[%clk
0:02:49.9]} 7. h4 {[%clk 0:02:50.6]} 7... b6 {[%clk 0:02:47.7]} 8. Ne5 {[%clk
0:02:48.9]} 8... Bb7 {[%clk 0:02:46.6]} 9. Qf3 {[%clk 0:02:47.1]} 9... Nbd7
{[%clk 0:02:43.3]} 10. Bf4 {[%clk 0:02:44.1]} 10... Nxe5 {[%clk 0:02:41.8]} 11.
Bxe5 {[%clk 0:02:44]} 11... Nd7 {[%clk 0:02:36.4]} 12. Bf4 {[%clk 0:02:36.5]}
12... Bf6 {[%clk 0:02:26.5]} 13. Qg3 {[%clk 0:02:07.4]} 13... c5 {[%clk
0:02:17.8]} 14. c3 {[%clk 0:02:04.5]} 14... cxd4 {[%clk 0:02:10.5]} 15. exd4
{[%clk 0:01:41.8]} 15... Kh8 {[%clk 0:02:05.4]} 16. Nf3 {[%clk 0:01:36.1]} 16...
Re8 {[%clk 0:02:02.9]} 17. O-O-O {[%clk 0:01:34.6]} 17... Rc8 {[%clk 0:02:02.1]}
18. Kb1 {[%clk 0:01:33.9]} 18... a6 {[%clk 0:01:43.1]} 19. Ng5 {[%clk
0:01:18.8]} 19... Qe7 {[%clk 0:01:31.1]} 20. Nf3 {[%clk 0:01:17.8]} 20... e5
{[%clk 0:01:25.8]} 21. dxe5 {[%clk 0:01:15.2]} 21... Nxe5 {[%clk 0:01:22.2]} 22.
Rhe1 {[%clk 0:01:11.5]} 22... Nxd3 {[%clk 0:00:41.9]} 23. Rxe7 {[%clk
0:01:02.8]} 23... Rxe7 {[%clk 0:00:41.8]} 24. Rxd3 {[%clk 0:01:02.5]} 24... Rce8
{[%clk 0:00:37.1]} 25. Re3 {[%clk 0:01:02.1]} 25... Rxe3 {[%clk 0:00:32.1]} 26.
fxe3 {[%clk 0:01:03]} 26... Re4 {[%clk 0:00:28.1]} 27. Nd4 {[%clk 0:01:01.3]}
27... Bc8 {[%clk 0:00:27.9]} 28. h5 {[%clk 0:00:57]} 28... b5 {[%clk 0:00:25]}
29. a3 {[%clk 0:00:56.1]} 29... Bd7 {[%clk 0:00:21.6]} 30. Ka2 {[%clk
0:00:49.6]} 30... a5 {[%clk 0:00:20.6]} 31. Bc7 {[%clk 0:00:45.9]} 31... b4
{[%clk 0:00:18.6]} 32. axb4 {[%clk 0:00:44.2]} 32... axb4 {[%clk 0:00:18.7]} 33.
Qd6 {[%clk 0:00:41.3]} 33... bxc3 {[%clk 0:00:14.1]} 34. bxc3 {[%clk 0:00:36.3]}
34... Bg4 {[%clk 0:00:10.5]} 35. Qf8+ {[%clk 0:00:33.9]} 35... Kh7 {[%clk
0:00:10.6]} 36. Bf4 {[%clk 0:00:34.4]} 36... Bxh5 {[%clk 0:00:08.2]} 37. g4
{[%clk 0:00:28.2]} 37... Bg6 {[%clk 0:00:08.4]} 38. Kb3 {[%clk 0:00:24.7]} 38...
Be7 {[%clk 0:00:06.7]} 39. Qc8 {[%clk 0:00:20.6]} 39... Bf6 {[%clk 0:00:06.9]}
40. Nf5 {[%clk 0:00:19.7]} 40... Rc4 {[%clk 0:00:04.5]} 41. Qf8 {[%clk
0:00:12.1]} 1-0

[Event "*** Titled Tuesday Blitz"]
[Site "Chess.com"]
[Date "2021.04.27"]
[Round "6"]
[White "Jumbo"]
[Black "Vesper2018"]
[Result "1-0"]
[WhiteElo "2788"]
[BlackElo "2557"]
[TimeControl "180+1"]
[EndTime "11:06:59 PDT"]
[Termination "Jumbo won by resignation"]

1. d4 {[%clk 0:03:00.9]} 1... Nf6 {[%clk 0:02:59.9]} 2. c4 {[%clk 0:03:01]} 2...
g6 {[%clk 0:03:00.4]} 3. g3 {[%clk 0:03:00.6]} 3... Bg7 {[%clk 0:03:00.3]} 4.
Bg2 {[%clk 0:03:00.6]} 4... O-O {[%clk 0:03:00.6]} 5. Nf3 {[%clk 0:03:01.1]}
5... d6 {[%clk 0:03:00.6]} 6. Nc3 {[%clk 0:03:00.2]} 6... Nc6 {[%clk 0:03:00]}
7. O-O {[%clk 0:03:00.1]} 7... a6 {[%clk 0:03:00.1]} 8. Qd3 {[%clk 0:02:57.9]}
8... Bd7 {[%clk 0:02:58.8]} 9. Rd1 {[%clk 0:02:49.8]} 9... Re8 {[%clk
0:02:51.3]} 10. e4 {[%clk 0:02:32.7]} 10... Bg4 {[%clk 0:02:38.9]} 11. d5 {[%clk
0:02:29.9]} 11... Bxf3 {[%clk 0:02:32.4]} 12. Qxf3 {[%clk 0:02:22.5]} 12... Ne5
{[%clk 0:02:31.2]} 13. Qe2 {[%clk 0:02:22.7]} 13... e6 {[%clk 0:02:25.6]} 14.
dxe6 {[%clk 0:02:16.9]} 14... fxe6 {[%clk 0:02:17.9]} 15. f4 {[%clk 0:02:13.3]}
15... Nc6 {[%clk 0:02:16.4]} 16. e5 {[%clk 0:02:13.1]} 16... Nd7 {[%clk
0:02:08.8]} 17. exd6 {[%clk 0:02:04.9]} 17... cxd6 {[%clk 0:01:46.7]} 18. Be3
{[%clk 0:02:02.4]} 18... d5 {[%clk 0:01:20.7]} 19. cxd5 {[%clk 0:01:57.6]} 19...
exd5 {[%clk 0:01:20.6]} 20. Nxd5 {[%clk 0:01:58.1]} 20... Kh8 {[%clk 0:00:56.6]}
21. Kh1 {[%clk 0:01:52.9]} 21... Nf6 {[%clk 0:00:40.7]} 22. Qf3 {[%clk 0:01:17]}
22... Nxd5 {[%clk 0:00:35]} 23. Rxd5 {[%clk 0:01:17.9]} 23... Qf6 {[%clk
0:00:33.2]} 24. Rd2 {[%clk 0:01:16.1]} 24... Re7 {[%clk 0:00:20]} 25. Rad1
{[%clk 0:01:12.7]} 25... Rae8 {[%clk 0:00:19.7]} 26. Bf2 {[%clk 0:01:13.2]}
26... Qf7 {[%clk 0:00:16.1]} 27. a3 {[%clk 0:01:10.5]} 27... Na5 {[%clk
0:00:13.8]} 28. Qd5 {[%clk 0:01:02.2]} 28... Qxd5 {[%clk 0:00:10.7]} 29. Bxd5
{[%clk 0:01:03.1]} 29... Re2 {[%clk 0:00:09.5]} 30. Bb6 {[%clk 0:00:50.3]} 30...
Rxd2 {[%clk 0:00:07.6]} 31. Rxd2 {[%clk 0:00:51.2]} 31... Nc6 {[%clk 0:00:07.9]}
32. Bf3 {[%clk 0:00:45.4]} 32... h5 {[%clk 0:00:07.4]} 33. Kg2 {[%clk
0:00:45.3]} 33... Kh7 {[%clk 0:00:06.9]} 34. f5 {[%clk 0:00:44]} 34... gxf5
{[%clk 0:00:06.4]} 35. Bxh5 {[%clk 0:00:44.3]} 35... Rf8 {[%clk 0:00:05.2]} 36.
Rd7 {[%clk 0:00:41.9]} 36... f4 {[%clk 0:00:05]} 37. Rxb7 {[%clk 0:00:39.1]}
37... Ne5 {[%clk 0:00:05.1]} 38. Bd4 {[%clk 0:00:36.5]} 38... f3+ {[%clk
0:00:05.3]} 39. Bxf3 {[%clk 0:00:35.3]} 39... Nxf3 {[%clk 0:00:03.2]} 40. Bxg7
{[%clk 0:00:33.6]} 40... Rf5 {[%clk 0:00:02.4]} 41. Bc3+ {[%clk 0:00:32.6]}
41... Kg6 {[%clk 0:00:02.2]} 42. Rb6+ {[%clk 0:00:31]} 42... Kf7 {[%clk
0:00:02.2]} 43. Rxa6 {[%clk 0:00:30.1]} 43... Ng5 {[%clk 0:00:02.7]} 44. Ra4
{[%clk 0:00:26.1]} 44... Ne6 {[%clk 0:00:02.3]} 45. Rc4 {[%clk 0:00:26.5]} 45...
Nc5 {[%clk 0:00:02.2]} 46. a4 {[%clk 0:00:24.5]} 46... Rd5 {[%clk 0:00:02.1]}
47. a5 {[%clk 0:00:23.2]} 1-0

[Event "*** Titled Tuesday Blitz"]
[Site "Chess.com"]
[Date "2021.04.27"]
[Round "6"]
[White "Pertinhez76"]
[Black "ariosp"]
[Result "0-1"]
[WhiteElo "2084"]
[BlackElo "2207"]
[TimeControl "180+1"]
[EndTime "11:06:59 PDT"]
[Termination "ariosp won by checkmate"]

1. d4 {[%clk 0:03:00.9]} 1... Nf6 {[%clk 0:02:59.4]} 2. Bf4 {[%clk 0:02:59.6]}
2... e6 {[%clk 0:03:00.1]} 3. e3 {[%clk 0:02:56.4]} 3... c5 {[%clk 0:03:00.6]}
4. Nf3 {[%clk 0:02:55.9]} 4... b6 {[%clk 0:03:01.2]} 5. Nbd2 {[%clk 0:02:55.5]}
5... Bb7 {[%clk 0:03:01.8]} 6. Bd3 {[%clk 0:02:54.4]} 6... Be7 {[%clk
0:02:59.2]} 7. c3 {[%clk 0:02:53.6]} 7... O-O {[%clk 0:02:59.6]} 8. O-O {[%clk
0:02:52.7]} 8... d6 {[%clk 0:02:59.4]} 9. Qe2 {[%clk 0:02:52.3]} 9... a6 {[%clk
0:02:57.8]} 10. Bg3 {[%clk 0:02:52.1]} 10... Nh5 {[%clk 0:02:55]} 11. e4 {[%clk
0:02:49.5]} 11... Nxg3 {[%clk 0:02:53.6]} 12. hxg3 {[%clk 0:02:50.4]} 12... Nd7
{[%clk 0:02:38.7]} 13. Rfd1 {[%clk 0:02:49.5]} 13... Re8 {[%clk 0:02:37.6]} 14.
a4 {[%clk 0:02:48.4]} 14... Qc7 {[%clk 0:02:37.3]} 15. e5 {[%clk 0:02:44.5]}
15... dxe5 {[%clk 0:02:36]} 16. dxe5 {[%clk 0:02:44.2]} 16... Red8 {[%clk
0:02:34]} 17. Bc2 {[%clk 0:02:41]} 17... Nf8 {[%clk 0:02:30.9]} 18. Ne4 {[%clk
0:02:38.9]} 18... Rxd1+ {[%clk 0:02:21.6]} 19. Rxd1 {[%clk 0:02:36.7]} 19... Rd8
{[%clk 0:02:22.2]} 20. Rxd8 {[%clk 0:02:34]} 20... Qxd8 {[%clk 0:02:21.4]} 21.
Qe3 {[%clk 0:02:25.6]} 21... f5 {[%clk 0:02:14]} 22. exf6 {[%clk 0:02:23.3]}
22... gxf6 {[%clk 0:02:13.7]} 23. Qf4 {[%clk 0:02:19]} 23... Bxe4 {[%clk
0:01:59.7]} 24. Qxe4 {[%clk 0:02:16.8]} 24... Qd5 {[%clk 0:01:50]} 25. Qg4+
{[%clk 0:02:15.5]} 25... Kf7 {[%clk 0:01:49.2]} 26. Nh4 {[%clk 0:01:48.4]} 26...
Qg5 {[%clk 0:01:38.7]} 27. Qe2 {[%clk 0:01:42.7]} 27... a5 {[%clk 0:01:28.7]}
28. Kh2 {[%clk 0:01:38.1]} 28... f5 {[%clk 0:01:24.3]} 29. Nf3 {[%clk
0:01:25.6]} 29... Qh6+ {[%clk 0:01:23.7]} 30. Kg1 {[%clk 0:01:21.7]} 30... Ng6
{[%clk 0:01:21.6]} 31. Bb3 {[%clk 0:01:15.6]} 31... Qc1+ {[%clk 0:01:12.2]} 32.
Kh2 {[%clk 0:01:11.8]} 32... Qh6+ {[%clk 0:01:11.7]} 33. Kg1 {[%clk 0:01:11]}
33... Nf8 {[%clk 0:01:03.8]} 34. Ne5+ {[%clk 0:01:08.1]} 34... Kg7 {[%clk
0:01:01.7]} 35. Nd3 {[%clk 0:01:06.7]} 35... Bd6 {[%clk 0:00:57.9]} 36. f4
{[%clk 0:01:01.9]} 36... Qg6 {[%clk 0:00:56]} 37. Kf2 {[%clk 0:01:01.4]} 37...
h5 {[%clk 0:00:54.7]} 38. Ne5 {[%clk 0:00:54]} 38... Qf6 {[%clk 0:00:53.8]} 39.
Nf3 {[%clk 0:00:47.4]} 39... Kf7 {[%clk 0:00:39.1]} 40. Qa6 {[%clk 0:00:45.5]}
40... Qd8 {[%clk 0:00:28.5]} 41. Qb7+ {[%clk 0:00:41]} 41... Qc7 {[%clk
0:00:26.5]} 42. Qa8 {[%clk 0:00:38.7]} 42... c4 {[%clk 0:00:25.2]} 43. Bd1
{[%clk 0:00:33.2]} 43... Ke7 {[%clk 0:00:23.5]} 44. Be2 {[%clk 0:00:32.1]} 44...
Bc5+ {[%clk 0:00:19.9]} 45. Kf1 {[%clk 0:00:30.7]} 45... Bd6 {[%clk 0:00:19.4]}
46. Nd4 {[%clk 0:00:29]} 46... Qd7 {[%clk 0:00:16.1]} 47. Nc6+ {[%clk
0:00:26.6]} 47... Kf7 {[%clk 0:00:13.4]} 48. Bxc4 {[%clk 0:00:26.3]} 48... Bc5
{[%clk 0:00:10.5]} 49. Nb8 {[%clk 0:00:19.5]} 49... Qd1# {[%clk 0:00:09.7]} 0-1

[Event "*** Titled Tuesday Blitz"]
[Site "Chess.com"]
[Date "2021.04.27"]
[Round "6"]
[White "Skat2704"]
[Black "Vaathi_Coming"]
[Result "0-1"]
[WhiteElo "2690"]
[BlackElo "2882"]
[TimeControl "180+1"]
[EndTime "11:07:00 PDT"]
[Termination "Vaathi_Coming won by resignation"]

1. d4 {[%clk 0:03:00.9]} 1... d6 {[%clk 0:02:59.2]} 2. Nf3 {[%clk 0:03:00.5]}
2... g6 {[%clk 0:02:59.7]} 3. c4 {[%clk 0:03:00.1]} 3... Bg7 {[%clk 0:03:00.2]}
4. Nc3 {[%clk 0:02:59.6]} 4... e5 {[%clk 0:03:00.4]} 5. dxe5 {[%clk 0:02:55.1]}
5... dxe5 {[%clk 0:03:01.3]} 6. Qxd8+ {[%clk 0:02:55.2]} 6... Kxd8 {[%clk
0:03:02.2]} 7. e4 {[%clk 0:02:53]} 7... c6 {[%clk 0:02:59.1]} 8. Bg5+ {[%clk
0:02:50.8]} 8... f6 {[%clk 0:02:58.8]} 9. O-O-O+ {[%clk 0:02:50.6]} 9... Kc7
{[%clk 0:02:58.8]} 10. Be3 {[%clk 0:02:50.7]} 10... Nh6 {[%clk 0:02:45.8]} 11.
h3 {[%clk 0:02:41.3]} 11... Nf7 {[%clk 0:02:44.1]} 12. Nd2 {[%clk 0:02:32.4]}
12... Be6 {[%clk 0:02:41.3]} 13. Nb3 {[%clk 0:02:28.2]} 13... b6 {[%clk
0:02:09.2]} 14. Be2 {[%clk 0:02:22.7]} 14... Bh6 {[%clk 0:02:03.5]} 15. Bxh6
{[%clk 0:02:19.2]} 15... Nxh6 {[%clk 0:02:04.4]} 16. Rd2 {[%clk 0:02:02.7]}
16... Nd7 {[%clk 0:02:03.6]} 17. Rhd1 {[%clk 0:02:01.4]} 17... Rhd8 {[%clk
0:02:04.2]} 18. Na1 {[%clk 0:01:51.5]} 18... a5 {[%clk 0:01:49.2]} 19. Nc2
{[%clk 0:01:51]} 19... Nc5 {[%clk 0:01:48.4]} 20. Ne3 {[%clk 0:01:47.4]} 20...
Ng8 {[%clk 0:01:34.9]} 21. f3 {[%clk 0:01:36.9]} 21... Ne7 {[%clk 0:01:34.6]}
22. h4 {[%clk 0:01:27.4]} 22... f5 {[%clk 0:01:26.3]} 23. h5 {[%clk 0:01:22.8]}
23... Rxd2 {[%clk 0:01:23.1]} 24. Rxd2 {[%clk 0:01:20.4]} 24... gxh5 {[%clk
0:01:11.6]} 25. exf5 {[%clk 0:01:16.3]} 25... Nxf5 {[%clk 0:01:12.5]} 26. Nxf5
{[%clk 0:01:15.9]} 26... Bxf5 {[%clk 0:01:13.4]} 27. g4 {[%clk 0:01:14.5]} 27...
hxg4 {[%clk 0:01:11.8]} 28. fxg4 {[%clk 0:01:14.9]} 28... Bg6 {[%clk 0:01:12.4]}
29. Bf3 {[%clk 0:00:51.3]} 29... Rf8 {[%clk 0:01:11.9]} 30. Bg2 {[%clk
0:00:50.7]} 30... Nd3+ {[%clk 0:01:08]} 31. Kd1 {[%clk 0:00:48.5]} 31... Rf2
{[%clk 0:01:06.5]} 32. b3 {[%clk 0:00:27.1]} 32... Rf4 {[%clk 0:00:59.9]} 33.
Ke2 {[%clk 0:00:15.7]} 33... Rxg4 {[%clk 0:00:51.8]} 34. Bf3 {[%clk 0:00:15.8]}
34... Rg3 {[%clk 0:00:46.4]} 35. Ne4 {[%clk 0:00:15.4]} 35... Bxe4 {[%clk
0:00:41.1]} 36. Bxe4 {[%clk 0:00:15.6]} 36... Nf4+ {[%clk 0:00:41.2]} 37. Kf2
{[%clk 0:00:15.7]} 37... Rh3 {[%clk 0:00:41.1]} 38. Bf3 {[%clk 0:00:13.9]} 38...
Rh2+ {[%clk 0:00:40.8]} 39. Ke3 {[%clk 0:00:14.2]} 39... Rxd2 {[%clk 0:00:41.4]}
40. Kxd2 {[%clk 0:00:14.9]} 40... Kd6 {[%clk 0:00:38.2]} 41. Ke3 {[%clk
0:00:15.3]} 41... c5 {[%clk 0:00:37.5]} 42. Ke4 {[%clk 0:00:15.2]} 42... Ke6
{[%clk 0:00:37.5]} 43. Bg4+ {[%clk 0:00:14.8]} 43... Kf6 {[%clk 0:00:37.8]} 44.
Bf3 {[%clk 0:00:14.8]} 44... h5 {[%clk 0:00:38.4]} 45. Ke3 {[%clk 0:00:13.3]}
45... h4 {[%clk 0:00:38.3]} 46. a3 {[%clk 0:00:13.3]} 46... Kf5 {[%clk
0:00:36.7]} 47. b4 {[%clk 0:00:13.1]} 47... cxb4 {[%clk 0:00:34.5]} 48. axb4
{[%clk 0:00:13.5]} 48... axb4 {[%clk 0:00:35.4]} 49. Kd2 {[%clk 0:00:13]} 49...
e4 {[%clk 0:00:35.2]} 50. Bh1 {[%clk 0:00:12.3]} 50... h3 {[%clk 0:00:32.1]} 51.
Ke3 {[%clk 0:00:12.1]} 51... Ng2+ {[%clk 0:00:32.3]} 52. Kf2 {[%clk 0:00:11.5]}
52... b3 {[%clk 0:00:32.3]} 0-1